bitfinex/quotes_BTCUSD_20220226
["timestamp","ask_amount","ask_price","bid_price","bid_amount"]
[1645839694894,0.07259939,39697.0,39683.0,0.61847078]
[1645839695096,0.04747939,39697.0,39684.0,0.69289303]
[1645839695295,0.00030845,39686.0,39685.0,0.31908761]
[1645839695495,0.00030845,39686.0,39684.0,0.37200382]
[1645839695695,0.00030845,39686.0,39684.0,0.47200381]
[1645839695895,0.00030845,39686.0,39684.0,0.09999999]
[1645839696096,0.04747939,39697.0,39684.0,0.09999999]
[1645839696298,0.04747939,39697.0,39685.0,0.37380542]
[1645839696299,0.0003719,39687.0,39685.0,0.37380542]
[1645839696499,0.0003719,39687.0,39684.0,0.09999999]
[1645839696796,0.0003719,39687.0,39684.0,0.37200382]
[1645839696995,0.0003719,39687.0,39683.0,0.571387]
[1645839697196,0.04747939,39697.0,39684.0,0.79273691]
[1645839697396,0.04747939,39697.0,39684.0,0.74580924]
[1645839697643,0.04747939,39697.0,39685.0,0.41892922]
[1645839697841,0.04747939,39697.0,39685.0,0.51892921]
[1645839698044,0.04747939,39697.0,39685.0,0.09999999]
[1645839698243,0.04747939,39697.0,39685.0,0.47200381]
[1645839698642,0.04747939,39697.0,39685.0,0.37200382]
[1645839698843,0.04747939,39697.0,39685.0,0.41894736]
[1645839699248,0.2502436,39692.0,39685.0,0.41894736]
[1645839699447,0.2502436,39692.0,39681.0,0.0939]
[1645839699448,0.92660629,39691.0,39681.0,0.0939]
[1645839699647,0.97660629,39691.0,39681.0,0.0939]
[1645839699846,0.02512,39690.0,39681.0,0.0939]
[1645839700045,0.401214,39689.0,39681.0,0.0939]
[1645839700245,0.62539229,39691.0,39681.0,0.0939]
[1645839700246,0.18928833,39683.0,39681.0,0.0939]
[1645839700446,0.52767382,39682.0,39681.0,0.0939]
[1645839700648,0.15157982,39682.0,39681.0,0.0939]
[1645839700845,0.18928833,39683.0,39681.0,0.0939]
[1645839701045,2.21122026,39683.0,39681.0,0.0939]
[1645839701492,0.37380542,39682.0,39681.0,0.0939]
[1645839701892,0.37380542,39682.0,39681.0,0.0949]
[1645839702093,0.37380542,39682.0,39671.0,0.37200382]
[1645839702094,0.901,39681.0,39671.0,0.37200382]
[1645839702294,0.68362542,39680.0,39669.0,0.1361]
[1645839702595,0.22248197,39670.0,39667.0,0.37200382]
[1645839702893,0.02512,39678.0,39666.0,0.37200382]
[1645839703093,0.39794784,39678.0,39666.0,0.37200382]
[1645839703292,0.39794784,39678.0,39667.0,0.37200382]
[1645839703492,0.39794784,39678.0,39670.0,0.00042458]
[1645839703694,0.37282784,39678.0,39676.0,0.0999]
[1645839703896,0.30926446,39679.0,39676.0,0.0999]
[1645839704098,0.65752784,39680.0,39676.0,0.0999]
[1645839704099,0.37282784,39678.0,39676.0,0.0999]
[1645839704299,0.2847,39680.0,39676.0,0.0999]
[1645839705142,0.18957642,39679.0,39676.0,0.0999]
[1645839705545,0.376094,39678.0,39676.0,0.0999]
[1645839705743,0.56240426,39679.0,39666.0,0.37200382]
[1645839705744,0.37282784,39677.0,39666.0,0.37200382]
[1645839705943,0.37282784,39677.0,39676.0,0.00042245]
[1645839706143,0.81340426,39679.0,39676.0,0.00042245]
[1645839706343,0.81340426,39679.0,39677.0,0.0999]
[1645839706543,0.37282784,39678.0,39677.0,0.0999]
[1645839707946,0.37382784,39678.0,39677.0,0.0999]
[1645839708645,0.001,39678.0,39677.0,0.0999]
[1645839709092,0.61240426,39679.0,39677.0,0.0999]
[1645839709991,0.61440426,39679.0,39677.0,0.0999]
[1645839710190,0.37282784,39678.0,39677.0,0.0999]
[1645839710391,0.37282784,39678.0,39676.0,0.0004108]
[1645839710592,0.23492781,39670.0,39665.0,0.01008]
[1645839710996,0.23492781,39670.0,39669.0,0.00164349]
[1645839711293,0.39794784,39676.0,39669.0,0.00164349]
[1645839711494,0.02512,39675.0,39669.0,0.00164349]
[1645839711693,0.05,39676.0,39670.0,0.0999]
[1645839711894,0.39794784,39678.0,39669.0,0.001]
[1645839712099,0.39794784,39678.0,39671.0,0.00041747]
[1645839712293,0.22864541,39674.0,39671.0,0.00041747]
[1645839713143,0.22864541,39674.0,39671.0,0.00083494]
[1645839713445,0.79892184,39673.0,39671.0,0.00041747]
[1645839713643,0.74892184,39672.0,39671.0,7.47e-06]
[1645839713844,0.79892184,39672.0,39671.0,7.47e-06]
[1645839714245,0.2377535,39665.0,39660.0,0.0011]
[1645839714947,0.376094,39664.0,39660.0,0.0011]
[1645839715142,0.2377535,39665.0,39660.0,0.0011]
[1645839715542,0.2377535,39665.0,39660.0,0.00151165]
[1645839715746,0.9,39663.0,39656.0,0.0011]
[1645839715948,0.89892184,39662.0,39656.0,0.0011]
[1645839716145,0.21204447,39661.0,39656.0,0.0011]
[1645839716404,1.51472184,39660.0,39656.0,0.0011]
[1645839716606,0.21573875,39659.0,39656.0,0.0011]
[1645839716800,0.74892184,39658.0,39656.0,0.0011]
[1645839717001,0.376094,39658.0,39656.0,0.0011]
[1645839718102,0.60574442,39658.0,39656.0,0.0011]
[1645839718702,0.376094,39658.0,39656.0,0.0011]
[1645839719107,0.002,39663.0,39656.0,0.0011]
[1645839719303,0.376094,39662.0,39656.0,0.0011]
[1645839719706,0.376094,39662.0,39661.0,0.069]
[1645839720938,0.376094,39662.0,39658.0,0.00042326]
[1645839721141,0.376094,39660.0,39658.0,0.00042326]
[1645839721339,0.376094,39660.0,39656.0,0.0011]
[1645839721539,0.376094,39660.0,39658.0,0.00042326]
[1645839721839,0.377094,39660.0,39658.0,0.00042326]
[1645839722544,0.377094,39660.0,39656.0,0.0011]
[1645839722741,0.001,39660.0,39657.0,0.00042326]
[1645839723341,0.376094,39661.0,39657.0,0.00042326]
[1645839723741,0.376094,39661.0,39656.0,0.0011]
[1645839723991,0.376094,39661.0,39657.0,0.00040954]
[1645839724190,0.74805886,39661.0,39657.0,0.00040954]
[1645839724592,0.84805886,39661.0,39657.0,0.00040954]
[1645839724992,0.87317886,39661.0,39656.0,0.0011]
[1645839725392,0.84805886,39661.0,39657.0,0.00040332]
[1645839725593,0.17084507,39660.0,39657.0,0.00040332]
[1645839725793,0.74805886,39659.0,39657.0,0.00040332]
[1645839725998,0.74805886,39658.0,39657.0,0.00040332]
[1645839726294,0.376094,39657.0,39656.0,0.0011]
[1645839726498,0.74805886,39657.0,39656.0,0.00150332]
[1645839726698,0.9,39656.0,39654.0,0.00060332]
[1645839726897,0.376094,39655.0,39654.0,0.00060332]
[1645839727499,0.376094,39655.0,39654.0,3.32e-06]
[1645839727500,0.74805886,39655.0,39654.0,3.32e-06]
[1645839727945,0.74905886,39655.0,39654.0,3.32e-06]
[1645839728342,1.51485886,39655.0,39654.0,3.32e-06]
[1645839728539,0.79905886,39655.0,39654.0,3.32e-06]
[1645839728740,0.477094,39655.0,39654.0,3.32e-06]
[1645839729240,0.476094,39655.0,39654.0,3.32e-06]
[1645839729942,0.377094,39655.0,39654.0,3.32e-06]
[1645839730142,0.17920973,39653.0,39651.0,0.41197742]
[1645839730356,1.64805886,39652.0,39645.0,0.0011]
[1645839730545,0.7658,39651.0,39645.0,0.0011]
[1645839730745,0.426094,39649.0,39645.0,0.0011]
[1645839730944,0.476094,39649.0,39645.0,0.0011]
[1645839731393,0.59696126,39647.0,39644.0,6.53e-05]
[1645839731597,0.376094,39645.0,39644.0,6.53e-05]
[1645839731994,1.05,39643.0,39635.0,0.0021]
[1645839732194,1.05,39643.0,39630.0,0.002]
[1645839732195,0.15,39640.0,39632.0,0.0013]
[1645839732397,0.15,39640.0,39629.0,0.0021]
[1645839732398,0.7658,39634.0,39629.0,0.0021]
[1645839732593,0.7658,39631.0,39627.0,0.002]
[1645839732791,0.9,39632.0,39627.0,0.002]
[1645839732792,0.87987,39630.0,39627.0,0.002]
[1645839732996,0.371544,39629.0,39627.0,0.002]
[1645839733195,0.02512,39634.0,39627.0,0.002]
[1645839733496,0.02512,39634.0,39624.0,0.002]
[1645839733497,0.05,39629.0,39624.0,0.002]
[1645839733692,0.376101,39628.0,39624.0,0.002]
[1645839733892,0.376101,39627.0,39624.0,0.002]
[1645839734094,0.05,39628.0,39624.0,0.002]
[1645839734395,0.01008,39632.0,39626.0,0.09999999]
[1645839734396,0.37196486,39632.0,39626.0,0.09999999]
[1645839734592,0.376101,39631.0,39624.0,0.002]
[1645839734794,0.376101,39629.0,39624.0,0.002]
[1645839734994,0.02512,39632.0,39624.0,0.002]
[1645839735270,0.376101,39630.0,39624.0,0.002]
[1645839735674,0.02512,39631.0,39624.0,0.002]
[1645839735869,0.001,39630.0,39624.0,0.002]
[1645839736072,0.001,39630.0,39625.0,0.00041816]
[1645839736670,0.001,39630.0,39625.0,0.10041815]
[1645839736873,0.001,39630.0,39628.0,0.09999999]
[1645839737270,2.31510885,39635.0,39628.0,0.09999999]
[1645839737570,2.31510885,39635.0,39626.0,0.00040286]
[1645839737571,0.9794562,39634.0,39626.0,0.00040286]
[1645839738374,0.9794562,39634.0,39628.0,0.00040284]
[1645839738570,0.376101,39629.0,39628.0,0.00040284]
[1645839738994,0.17082444,39630.0,39628.0,0.00040284]
[1645839739193,2.42518885,39635.0,39628.0,0.00040284]
[1645839739393,0.74715342,39634.0,39624.0,0.002]
[1645839739593,0.376101,39634.0,39627.0,0.00040285]
[1645839739995,0.74715342,39634.0,39627.0,0.00040285]
[1645839740298,0.02512,39632.0,39600.0,6e-05]
[1645839740491,0.39550946,39632.0,39609.0,0.32512]
[1645839740692,0.39550946,39632.0,39613.0,0.5868]
[1645839740897,0.22795948,39627.0,39613.0,0.5868]
[1645839741096,0.25307948,39627.0,39616.0,0.0999]
[1645839741398,0.401221,39626.0,39616.0,0.0999]
[1645839741594,0.77161046,39626.0,39616.0,0.0999]
[1645839741792,0.77161046,39626.0,39613.0,0.387]
[1645839741793,0.02512,39626.0,39613.0,0.387]
[1645839741995,0.02512,39626.0,39613.0,0.377]
[1645839742193,9.904e-05,39623.0,39613.0,0.377]
[1645839743138,0.02512,39625.0,39613.0,0.377]
[1645839743344,9.904e-05,39623.0,39613.0,0.377]
[1645839744339,0.02512,39625.0,39613.0,0.377]
[1645839744539,0.00033012,39623.0,39616.0,0.0004057]
[1645839745337,0.36981798,39626.0,39616.0,0.0004057]
[1645839745537,0.376101,39625.0,39613.0,0.377]
[1645839745739,0.37038946,39626.0,39613.0,0.377]
[1645839746043,0.37038946,39626.0,39618.0,0.0004122]
[1645839746044,0.00035184,39623.0,39618.0,0.0004122]
[1645839746239,0.376101,39622.0,39618.0,0.0004122]
[1645839746494,0.19469315,39621.0,39618.0,0.0004122]
[1645839746694,0.376101,39620.0,39611.0,0.3726]
[1645839746896,0.376101,39620.0,39610.0,0.0949]
[1645839746897,0.37038946,39620.0,39610.0,0.0949]
[1645839747399,0.37038946,39620.0,39605.0,0.57895838]
[1645839748094,0.20696199,39615.0,39605.0,0.57895838]
[1645839748297,0.39550946,39614.0,39605.0,0.3787268]
[1645839748505,0.9933632,39614.0,39605.0,0.3787268]
[1645839748700,0.9933632,39614.0,39605.0,0.0033268]
[1645839748899,0.01008,39613.0,39605.0,0.0033268]
[1645839749396,0.30696199,39615.0,39605.0,0.0033268]
[1645839749397,0.20696199,39615.0,39605.0,0.0033268]
[1645839749596,0.20696199,39615.0,39608.0,0.00042219]
[1645839749795,0.376101,39614.0,39608.0,0.00042219]
[1645839750254,0.376101,39612.0,39608.0,0.00042219]
[1645839750454,0.02512,39612.0,39605.0,0.0033268]
[1645839750655,0.18019528,39620.0,39605.0,0.0033268]
[1645839750656,0.25689765,39608.0,39605.0,0.0033268]
[1645839751265,0.01008,39622.0,39606.0,0.12512]
[1645839751457,0.00011518,39625.0,39613.0,0.19938318]
[1645839751458,0.24107419,39619.0,39613.0,0.19938318]
[1645839751657,0.24107419,39619.0,39611.0,0.37038946]
[1645839752057,0.24107419,39619.0,39610.0,0.0463]
[1645839752257,0.24107419,39619.0,39611.0,0.37038946]
[1645839752456,0.24107419,39619.0,39612.0,0.0463]
[1645839753056,0.24107419,39619.0,39612.0,0.24568318]
[1645839753455,0.24107419,39619.0,39612.0,0.0463]
[1645839753907,0.24107419,39619.0,39613.0,0.01009]
[1645839754299,0.24107419,39619.0,39614.0,0.00042089]
[1645839754802,0.24107419,39619.0,39610.0,0.7658]
[1645839755002,0.24107419,39619.0,39611.0,0.01009]
[1645839755202,0.0234,39626.0,39611.0,0.05639]
[1645839755599,0.3734,39626.0,39611.0,0.25619]
[1645839755800,0.20672791,39625.0,39611.0,0.25619]
[1645839756000,0.20672791,39625.0,39612.0,0.02512]
[1645839756200,0.20672791,39625.0,39613.0,0.0815]
[1645839756404,0.57170185,39625.0,39614.0,0.0463]
[1645839756799,0.20672791,39625.0,39614.0,0.0463]
[1645839757000,0.57170185,39625.0,39614.0,0.0463]
[1645839757201,0.22534406,39619.0,39614.0,0.0463]
[1645839757405,0.36497394,39618.0,39614.0,0.0463]
[1645839757648,0.590318,39619.0,39607.0,0.0463]
[1645839758048,0.00011679,39618.0,39609.0,0.003]
[1645839758251,0.00011679,39618.0,39603.0,0.0999]
[1645839758252,0.2,39608.0,39603.0,0.0999]
[1645839758449,0.36497394,39607.0,39603.0,0.0999]
[1645839758649,0.2,39608.0,39598.0,0.1998]
[1645839758952,0.2,39608.0,39599.0,0.02512]
[1645839759149,0.36497394,39611.0,39600.0,0.02512]
[1645839759351,0.2,39608.0,39603.0,0.00042106]
[1645839759550,0.15,39609.0,39603.0,0.00042106]
[1645839759751,0.00038927,39610.0,39603.0,0.00042106]
[1645839759949,0.15,39609.0,39603.0,0.00342106]
[1645839760150,0.15,39609.0,39603.0,0.003]
[1645839760348,0.15,39609.0,39604.0,0.00042105]
[1645839761391,0.15,39609.0,39596.0,0.37675849]
[1645839761596,0.15,39609.0,39605.0,0.00040232]
[1645839762391,0.15,39609.0,39596.0,0.36658355]
[1645839762593,0.2,39610.0,39596.0,0.36658355]
[1645839762594,0.17028438,39606.0,39596.0,0.00160961]
[1645839762795,0.17028438,39606.0,39605.0,0.00040231]
[1645839763595,0.9,39605.0,39595.0,0.34198587]
[1645839763793,0.9,39605.0,39604.0,0.00037578]
[1645839764996,0.9,39605.0,39603.0,0.0999]
[1645839765643,0.0001183,39606.0,39603.0,0.0999]
[1645839765848,0.0001183,39606.0,39605.0,0.02512]
[1645839766045,0.01008,39620.0,39605.0,0.07142]
[1645839766243,0.32897823,39625.0,39607.0,0.02512]
[1645839766244,0.01008,39624.0,39607.0,0.02512]
[1645839766441,0.37346294,39625.0,39609.0,0.02512]
[1645839766644,0.37346294,39625.0,39610.0,0.07142]
[1645839766846,0.37346294,39625.0,39611.0,0.0463]
[1645839767042,0.37346294,39625.0,39611.0,0.07142]
[1645839767247,0.36338294,39625.0,39611.0,0.07142]
[1645839767545,0.36338294,39629.0,39612.0,0.01008]
[1645839767742,0.36338294,39629.0,39614.0,0.02512]
[1645839767743,0.00039433,39620.0,39614.0,0.02512]
[1645839767941,0.00039433,39620.0,39612.0,0.01008]
[1645839767942,0.00039433,39620.0,39616.0,0.02512]
[1645839768143,0.00039433,39620.0,39618.0,0.02512]
[1645839768342,0.00039433,39620.0,39619.0,0.07142]
[1645839768544,0.19489401,39630.0,39619.0,0.07142]
[1645839768991,0.00038132,39620.0,39619.0,0.07142]
[1645839769194,0.00038132,39620.0,39619.0,0.0463]
[1645839769792,0.36338294,39629.0,39619.0,0.0463]
[1645839771999,0.36338294,39616.0,39604.0,0.01309]
[1645839772392,0.00032818,39612.0,39604.0,0.01309]
[1645839773243,0.00032818,39612.0,39606.0,0.02512]
[1645839773446,0.05,39622.0,39606.0,0.0815]
[1645839773643,0.36338294,39624.0,39606.0,0.07142]
[1645839773844,0.00032818,39610.0,39606.0,0.07142]
[1645839774443,0.00032818,39610.0,39606.0,0.0463]
[1645839774647,0.36338294,39624.0,39606.0,0.0463]
[1645839774845,0.00032818,39610.0,39607.0,0.01008]
[1645839775045,0.00032818,39610.0,39608.0,0.0463]
[1645839775444,0.00032818,39610.0,39609.0,0.02512]
[1645839775645,0.00032818,39610.0,39609.0,0.0463]
[1645839775846,0.36338294,39624.0,39609.0,0.0463]
[1645839776045,0.00033507,39612.0,39609.0,0.0523]
[1645839776495,0.00033507,39612.0,39610.0,0.02512]
[1645839776797,0.00033507,39612.0,39611.0,0.32122]
[1645839776997,0.09999999,39631.0,39611.0,0.32122]
[1645839776998,0.36176808,39630.0,39612.0,0.79098]
[1645839777199,0.27055232,39631.0,39614.0,0.02512]
[1645839777395,0.36176808,39630.0,39615.0,0.0463]
[1645839777596,0.36176808,39630.0,39616.0,0.05638]
[1645839777795,0.36176808,39630.0,39617.0,0.0463]
[1645839778396,0.27055232,39631.0,39617.0,0.0463]
[1645839778397,0.00010052,39625.0,39617.0,0.0463]
[1645839778598,0.00010052,39625.0,39618.0,0.36176808]
[1645839778796,0.00010052,39625.0,39619.0,0.0463]
[1645839778998,0.00010052,39625.0,39620.0,0.32444244]
[1645839779197,0.00010052,39625.0,39621.0,0.05638]
[1645839779397,1.21902,39641.0,39622.0,0.0463]
[1645839779398,0.46176807,39639.0,39622.0,0.0463]
[1645839779601,0.65226836,39642.0,39623.0,0.35949314]
[1645839779802,0.1969327,39639.0,39624.0,0.07142]
[1645839780152,0.1969327,39639.0,39625.0,0.0352]
[1645839780352,0.17869091,39633.0,39626.0,0.0463]
[1645839780551,0.17869091,39633.0,39627.0,0.01008]
[1645839780750,0.17869091,39633.0,39628.0,0.0463]
[1645839781952,2.46171527,39642.0,39628.0,0.07105561]
[1645839781953,0.36176808,39641.0,39628.0,0.07105561]
[1645839782153,1.83280218,39646.0,39629.0,0.20988]
[1645839782154,0.00010825,39632.0,39629.0,0.20988]
[1645839782356,0.00010825,39632.0,39630.0,0.07142]
[1645839782751,0.00010825,39632.0,39630.0,0.12142]
[1645839782951,0.00010825,39632.0,39630.0,0.0963]
[1645839783152,0.18523548,39640.0,39630.0,0.0963]
[1645839783352,0.00010825,39633.0,39631.0,0.01008]
[1645839783753,0.00010825,39633.0,39629.0,0.05]
[1645839783754,0.00010825,39633.0,39632.0,0.0463]
[1645839784198,0.18523548,39640.0,39632.0,0.0463]
[1645839784497,0.00035927,39634.0,39632.0,0.0463]
[1645839785497,0.18523548,39640.0,39632.0,0.0463]
[1645839785697,0.00035927,39635.0,39632.0,0.0463]
[1645839786495,2.55938742,39645.0,39632.0,0.0463]
[1645839786697,0.11007999,39648.0,39633.0,0.05]
[1645839786898,0.09999999,39648.0,39634.0,0.0463]
[1645839787503,0.09999999,39648.0,39634.0,0.0963]
[1645839787748,0.18714656,39644.0,39634.0,0.0963]
[1645839788148,9.939e-05,39643.0,39634.0,0.0983]
[1645839789047,0.18714656,39644.0,39634.0,0.0983]
[1645839789247,0.18714656,39644.0,39634.0,0.0963]
[1645839789448,0.00033042,39640.0,39634.0,0.0963]
[1645839790053,0.00033042,39640.0,39634.0,0.0993]
[1645839790248,0.18714656,39644.0,39634.0,0.0993]
[1645839790648,0.00033042,39639.0,39634.0,0.0993]
[1645839791255,0.00033042,39639.0,39636.0,0.1998]
[1645839791507,0.01,39649.0,39637.0,0.07142]
[1645839791806,0.01,39649.0,39640.0,0.1998]
[1645839792009,0.01,39649.0,39641.0,0.0463]
[1645839792205,0.01,39649.0,39642.0,0.02512]
[1645839792507,0.01,39649.0,39643.0,0.07142]
[1645839793006,0.00010035,39647.0,39643.0,0.07142]
[1645839793406,0.00010035,39647.0,39643.0,0.0463]
[1645839794008,0.01,39649.0,39643.0,0.0463]
[1645839794208,0.00033368,39647.0,39643.0,0.0463]
[1645839795243,0.1848869,39648.0,39643.0,0.0463]
[1645839795447,0.00033368,39647.0,39643.0,0.0463]
[1645839795649,0.46210175,39647.0,39643.0,0.0463]
[1645839796044,0.18021874,39637.0,39636.0,0.1998]
[1645839798146,0.18021874,39637.0,39636.0,0.2048]
[1645839799503,0.00033323,39638.0,39636.0,0.1998]
[1645839799706,0.00033323,39638.0,39637.0,0.04386145]
[1645839799905,0.09259999,39642.0,39637.0,0.04386145]
[1645839800304,0.00033331,39639.0,39638.0,0.3604256]
[1645839800512,0.00033331,39639.0,39638.0,0.6065256]
[1645839800703,0.00033331,39639.0,39638.0,0.6565256]
[1645839801305,0.09259999,39642.0,39638.0,1.4133656]
[1645839801504,0.00033331,39640.0,39638.0,1.4133656]
[1645839801704,0.00033331,39640.0,39639.0,0.05]
[1645839801904,0.00033331,39640.0,39639.0,0.4567256]
[1645839802304,0.09259999,39642.0,39639.0,0.0963]
[1645839802504,0.09259999,39642.0,39639.0,0.4567256]
[1645839802747,0.00033331,39641.0,39639.0,0.456276]
[1645839803547,0.09259999,39642.0,39639.0,0.456276]
[1645839803947,0.09293449,39642.0,39639.0,0.456276]
[1645839804148,0.09293449,39642.0,39639.0,0.461276]
[1645839804350,0.09293449,39642.0,39640.0,0.1998]
[1645839804548,0.09293449,39642.0,39641.0,0.0463]
[1645839804750,0.09259999,39642.0,39641.0,0.0963]
[1645839805150,0.09259999,39642.0,39641.0,0.4567256]
[1645839805756,0.09259999,39642.0,39641.0,0.0963]
[1645839806154,0.09259999,39642.0,39641.0,0.0503]
[1645839807399,0.09259999,39642.0,39641.0,0.0463]
[1645839808600,0.09259999,39642.0,39640.0,0.1998]
[1645839808803,0.09259999,39642.0,39638.0,0.75684]
[1645839809600,0.22896191,39639.0,39638.0,0.75684]
[1645839812151,0.09259999,39642.0,39638.0,0.76184]
[1645839812351,0.00034469,39640.0,39638.0,0.76184]
[1645839813251,0.09259999,39642.0,39638.0,0.76184]
[1645839813454,0.09259999,39642.0,39638.0,0.75684]
[1645839813455,0.00010365,39641.0,39638.0,0.75684]
[1645839814298,0.09259999,39642.0,39638.0,0.75684]
[1645839814698,0.00011817,39641.0,39638.0,0.75684]
[1645839815600,0.09259999,39642.0,39638.0,0.75684]
[1645839816101,0.00011817,39641.0,39638.0,0.75684]
[1645839816305,0.00011817,39641.0,39638.0,0.75984]
[1645839816703,0.09259999,39642.0,39638.0,0.75984]
[1645839817102,0.00039309,39641.0,39638.0,0.75984]
[1645839817503,0.00039309,39641.0,39638.0,0.75684]
[1645839817949,0.09259999,39642.0,39638.0,0.75684]
[1645839819451,0.09259999,39642.0,39638.0,0.80684]
[1645839819651,0.09259999,39642.0,39639.0,0.0463]
[1645839819853,0.09259999,39642.0,39639.0,0.0963]
[1645839820150,0.09259999,39642.0,39639.0,0.1003]
[1645839822096,0.0929936,39642.0,39639.0,0.0963]
[1645839822495,0.0929936,39642.0,39639.0,0.0958494]
[1645839822694,0.0929936,39642.0,39639.0,0.0463]
[1645839822895,0.09259999,39642.0,39639.0,0.0463]
[1645839823095,0.0929936,39642.0,39639.0,0.0463]
[1645839823899,0.09259999,39642.0,39639.0,0.0463]
[1645839824099,0.09259999,39642.0,39639.0,0.4067256]
[1645839824298,0.0929936,39642.0,39640.0,0.01008]
[1645839824499,0.0929936,39642.0,39641.0,0.2461]
[1645839824697,0.0929936,39642.0,39641.0,0.3461]
[1645839825155,0.09259999,39642.0,39641.0,0.3461]
[1645839825756,0.09259999,39642.0,39641.0,0.1998]
[1645839825757,0.19259998,39642.0,39641.0,0.1998]
[1645839825956,0.19259998,39642.0,39638.0,0.75684]
[1645839825957,0.21771998,39642.0,39638.0,0.75684]
[1645839826154,0.11771999,39642.0,39638.0,0.75684]
[1645839826353,0.09999999,39640.0,39638.0,0.75684]
[1645839826557,0.09259999,39642.0,39638.0,0.75684]
[1645839826558,0.19259998,39642.0,39638.0,0.75684]
[1645839826754,0.29218438,39642.0,39638.0,0.75684]
[1645839826954,0.09999999,39639.0,39638.0,0.75684]
[1645839829199,0.09999999,39639.0,39638.0,0.75184]
[1645839830297,0.09999999,39639.0,39638.0,0.75284]
[1645839831597,0.09999999,39639.0,39638.0,0.75184]
[1645839831998,0.00039361,39640.0,39638.0,0.75184]
[1645839832198,0.00039361,39640.0,39638.0,0.75284]
[1645839832399,0.09999999,39641.0,39638.0,0.75284]
[1645839832644,0.1003936,39641.0,39638.0,0.75284]
[1645839833445,0.1003936,39641.0,39638.0,0.75184]
[1645839833644,0.31693059,39642.0,39638.0,0.75184]
[1645839834044,0.00039361,39641.0,39638.0,0.75184]
[1645839834245,0.09999999,39639.0,39638.0,0.75284]
[1645839834452,0.47610099,39639.0,39638.0,0.75284]
[1645839834645,0.47610099,39639.0,39638.0,0.18392476]
[1645839834946,0.09999999,39639.0,39638.0,0.18392476]
[1645839835245,0.47610099,39639.0,39638.0,0.001]
[1645839835444,0.47610099,39639.0,39625.0,0.01008]
[1645839835445,0.21124432,39631.0,39625.0,0.01008]
[1645839835844,0.09999999,39634.0,39625.0,0.37410086]
[1645839836044,0.09999999,39632.0,39625.0,0.01008]
[1645839836502,0.00039354,39637.0,39625.0,0.01008]
[1645839837502,0.02551354,39637.0,39625.0,0.01008]
[1645839837702,0.09999999,39635.0,39625.0,0.01008]
[1645839837902,0.09999999,39631.0,39625.0,0.01008]
[1645839838103,0.09999999,39634.0,39625.0,0.01008]
[1645839838304,0.1263,39639.0,39625.0,0.01008]
[1645839838305,0.09499999,39635.0,39625.0,0.01008]
[1645839838702,0.18261996,39634.0,39625.0,0.01008]
[1645839839502,0.27761995,39634.0,39625.0,0.01008]
[1645839839708,0.27592936,39634.0,39625.0,0.01008]
[1645839840354,0.27592936,39634.0,39625.0,0.01308]
[1645839841557,0.27592936,39634.0,39625.0,0.01008]
[1645839842262,0.27592936,39634.0,39625.0,0.01308]
[1645839843558,0.27592936,39634.0,39625.0,0.01008]
[1645839844197,0.30095062,39634.0,39625.0,0.01008]
[1645839844399,0.27583062,39634.0,39625.0,0.01008]
[1645839845498,0.18083063,39634.0,39625.0,0.01008]
[1645839846301,0.18083063,39634.0,39625.0,0.01308]
[1645839847950,0.0951183,39637.0,39625.0,0.01308]
[1645839848251,0.1263,39639.0,39625.0,0.31218]
[1645839848450,0.1263,39639.0,39626.0,0.36402086]
[1645839848451,0.00011831,39637.0,39626.0,0.36402086]
[1645839848653,0.00011831,39637.0,39628.0,0.1998]
[1645839848850,0.00011831,39637.0,39629.0,0.41032086]
[1645839849249,0.50119999,39640.0,39629.0,0.0463]
[1645839849449,0.50119999,39640.0,39630.0,0.36402086]
[1645839849649,0.50119999,39640.0,39631.0,0.0463]
[1645839849650,0.00011832,39637.0,39631.0,0.0463]
[1645839850056,0.00011832,39637.0,39632.0,0.36402086]
[1645839850257,0.00011832,39637.0,39633.0,0.0463]
[1645839850452,0.09259999,39642.0,39634.0,0.36402086]
[1645839850654,0.09259999,39642.0,39636.0,0.1998]
[1645839850851,0.09259999,39642.0,39637.0,0.0463]
[1645839851499,0.09259999,39642.0,39638.0,0.1998]
[1645839851698,0.09259999,39642.0,39639.0,0.0963]
[1645839852099,0.00011854,39641.0,39639.0,0.0963]
[1645839852902,0.09259999,39642.0,39639.0,0.0963]
[1645839853301,0.0927106,39642.0,39639.0,0.0963]
[1645839854106,0.09259999,39642.0,39639.0,0.0963]
[1645839854506,0.0929677,39642.0,39639.0,0.0963]
[1645839855257,0.08759999,39642.0,39639.0,0.0963]
[1645839855755,0.0879677,39642.0,39639.0,0.0963]
[1645839856157,0.0879677,39642.0,39640.0,0.0999]
[1645839856555,0.08759999,39642.0,39640.0,0.0999]
[1645839856755,0.0879677,39642.0,39640.0,0.0999]
[1645839857760,0.08759999,39642.0,39640.0,0.0999]
[1645839857956,0.08759999,39642.0,39641.0,0.46032086]
[1645839858158,0.08759999,39642.0,39641.0,0.53544086]
[1645839858355,0.08759999,39642.0,39641.0,0.51032086]
[1645839860421,0.08759999,39642.0,39641.0,0.51332086]
[1645839860612,0.08759999,39642.0,39641.0,0.71312086]
[1645839861012,0.08759999,39642.0,39641.0,0.3491]
[1645839861512,0.08759999,39642.0,39641.0,0.3461]
[1645839862113,0.08759999,39642.0,39641.0,0.71012086]
[1645839862313,0.08759999,39642.0,39641.0,0.3491]
[1645839862515,0.08759999,39642.0,39641.0,0.449]
[1645839863652,0.08759999,39642.0,39641.0,0.446]
[1645839864055,0.08759999,39642.0,39641.0,0.81002086]
[1645839865654,0.08759999,39642.0,39641.0,1.66399886]
[1645839866503,0.08759999,39642.0,39641.0,1.66699886]
[1645839867309,0.08759999,39642.0,39641.0,0.83814086]
[1645839867505,0.08759999,39642.0,39641.0,0.81002086]
[1645839867705,0.08759999,39642.0,39641.0,0.83514086]
[1645839867905,0.08759999,39642.0,39641.0,0.47112]
[1645839868305,0.08759999,39642.0,39641.0,1.23692]
[1645839868505,0.08759999,39642.0,39641.0,0.47112]
[1645839870357,0.08759999,39642.0,39641.0,1.23692]
[1645839873660,0.08759999,39642.0,39641.0,1.299978]
[1645839874400,0.08759999,39642.0,39641.0,1.278858]
[1645839875501,0.08759999,39642.0,39641.0,0.513058]
[1645839875700,0.08759999,39642.0,39641.0,0.446]